Workbook

Sheet 심의안건
A1: 제4회 예천군 보조금심의위원회 대상자선정심의 조서
K2: (단위 : 천원)
A3: 부서명 | B3: 보 조 사 업 자 | C3: 보 조 사 업 명 | D3: 과목명 | E3: 사 업 내 용 | F3: 2016년 지원액 | G3: 계 | H3: 보조금 | I3: 자부담 | J3: 1차(해당부서) | K3: 2차(예산부서) | L3: 3차(위원회)
A4: 계 | C4: =SUBTOTAL(103,C5:C51) -> 43 | F4: =SUBTOTAL(9,F5:F51) -> 2,911,197 | G4: 2,218,581 | H4: 1,199,154 | I4: 1,018,427 | J4: 1,199,154 | K4: 1,199,154 | L4: 1,199,154
A5: 환경관리과 소계 | C5: =SUBTOTAL(103,C6:C6) -> 1 | F5: =SUBTOTAL(9,F6:F6) -> 69,000 | G5: =SUBTOTAL(9,G6:G6) -> 21,000 | H5: 21,000 | I5: 0 | J5: 21,000 | K5: 21,000 | L5: 21,000
A6: 환경관리과 | B6: 예천읍 맛고을길 102 황분애 외 34명 (대상자 내역 별지) | C6: 농촌빈집정비 지원 | D6: 민간자본사업보조 | E6: 농촌빈집정비 지원사업 35개소 | F6: 69,000 | G6: 21,000 | H6: 21,000 | J6: 21,000 | K6: =J6 -> 21,000 | L6: =K6 -> 21,000
A7: 농정과 소계 | C7: =SUBTOTAL(103,C8:C28) -> 21 | F7: =SUBTOTAL(9,F8:F28) -> 2,560,352 | G7: =SUBTOTAL(9,G8:G28) -> 1,720,689 | H7: 882,520 | I7: 837,169 | J7: 882,520 | K7: 882,520 | L7: 882,520
A8: 농정과 | B8: 용문면 덕신길 195-9 박필서 | C8: 귀농인 빈집수리비 지원 | D8: 민간자본사업보조 | E8: 5,000,000원-1농가*80% | F8: 40,000 | G8: =SUM(H8:I8) -> 6,000 | H8: 4,000 | I8: 2,000 | J8: 4,000 | K8: =J8 -> 4,000 | L8: =K8 -> 4,000
A9: 농정과 | B9: 어무이참기름 조인선 외 11명 (대상자 내역 별지) | C9: 우수농산물 포장재 개선 지원사업 | D9: 민간자본사업보조 | E9: 123,000천원*70% | F9: 50,400 | G9: 123,000 | H9: 86,100 | I9: 35,900 | J9: 86,100 | K9: =J9 -> 86,100 | L9: =K9 -> 86,100
A10: 농정과 | B10: 은풍면 율곡리 김인수 외 27명 (대상자 내역 별지) | C10: 중소형농기계 지원 | D10: 민간자본사업보조 | E10: 2,000,000원*28대*50% | F10: 360,000 | G10: 58,000 | H10: 29,000 | I10: 29,000 | J10: 29,000 | K10: 29,000 | L10: 29,000
A11: 농정과 | B11: 호명면 직산리 김민현 외 1명 (대상자 내역 별지) | C11: 농작물 피해방지 해충포획기 지원 | D11: 민간자본사업보조 | E11: 1,000,000원*2대*50% | G11: 2,000 | H11: 1,000 | I11: 1,000 | J11: 1,000 | K11: 1,000 | L11: 1,000
A12: 농정과 | B12: 지보면 대죽길 105-1 류명기 외 2명 (대상자 내역 별지) | C12: 소규모 벼 육묘공장 지원사업 | D12: 민간자본사업보조 | E12: 42,000,000원 * 3동 * 50% | F12: 483,000 | G12: =SUM(H12:I12) -> 126,000 | H12: 63,000 | I12: 63,000 | J12: 63,000 | K12: 63,000 | L12: 63,000
A13: 농정과 | B13: 풍양면 낙상1길 58-13 | C13: 농약 안전보관함 설치 지원 | D13: 민간자본사업보조 | E13: 320,000원 * 1개 * 50% | G13: =SUM(H13:I13) -> 320 | H13: 160 | I13: 160 | J13: 160 | K13: 160 | L13: 160
A14: 농정과 | B14: 송전 친환경우렁이 작목반 | C14: 작목반 유통 물류장비(지게차) 지원사업 | D14: 민간자본사업보조 | E14: 30,000,000원*1대*50% | G14: 30,000 | H14: 15,000 | I14: 15,000 | J14: 15,000 | K14: 15,000 | L14: 15,000
A15: 농정과 | B15: 농업회사법인 안동무역㈜ | C15: 신선농산물 수출물류비 지원 | D15: 민간경상사업보조 | E15: 20,000kg*976*0.1 | F15: 1,952 | G15: 1,952 | H15: 1,952 | J15: 1,952 | K15: 1,952 | L15: 1,952
A16: 농정과 | B16: 효자면 텃골길 106 강구정 외 5명 (대상자 내역 별지) | C16: 다목적농가형저온저장고(33㎡) 지원 | D16: 민간자본사업보조 | E16: 20,000,000원 * 6동 *50% | F16: 180,000 | G16: 120,000 | H16: 60,000 | I16: 60,000 | J16: 60,000 | K16: 60,000 | L16: 60,000
A17: 농정과 | B17: 용문면 용문경천로 874-1 정연옥 외 2명 (대상자 내역 별지) | C17: 다목적리프트기, 승용예초기지원 | D17: 민간자본사업보조 | E17: 다목적리프트기9,000,000원 * 3대 *50% | F17: 103,500 | G17: 27,000 | H17: 13,500 | I17: 13,500 | J17: 13,500 | K17: 13,500 | L17: 13,500
A18: 농정과 | B18: 은풍면 부용봉길 129-7 이우호 | C18: 과수 전동가위 지원 | D18: 민간자본사업보조 | E18: 1,600,000원 * 1대 * 25% | F18: 24,000 | G18: 1,600 | H18: 800 | I18: 800 | J18: 800 | K18: 800 | L18: 800
A19: 농정과 | B19: 대구경북능금농협 예천경제사업장 | C19: 저품위사과 시장격리 수매지원 | D19: 민간경상사업보조 | E19: 8,000원 * 4,401 박스(20kg/1박스) * 37.5% | G19: 35,208 | H19: =3*4401 -> 13,203 | I19: =4401*5 -> 22,005 | J19: 13,203 | K19: 13,203 | L19: 13,203
A20: 농정과 | B20: 예천읍 왕신길 260 이남규 외 7명 (대상자 내역 별지) | C20: 소득작목육성 지원사업 | D20: 민간자본사업보조 | E20: 4,000원 * 7,810㎡ * 50%(PO필름) 20,000원 * 7,130㎡ * 50%(내재해형하우스) | F20: 516,667 | G20: 173,840 | H20: 86,920 | I20: 86,920 | J20: 86,920 | K20: 86,920 | L20: 86,920
A21: 농정과 | B21: 예천읍 봉덕로 52 구연해 외 118명 (대상자 내역 별지) | C21: 소형이동식저온저장고 | D21: 민간자본사업보조 | E21: 6,000,000원 * 119동 * 50%(소형저온저장고) | F21: 426,190 | G21: 714,000 | H21: 357,000 | I21: 357,000 | J21: 357,000 | K21: 357,000 | L21: 357,000
A22: 농정과 | B22: 호명면 한어길 138-3 신태호 | C22: 원예작물 비가림시설 지원 | D22: 민간자본사업보조 | E22: 2,300,000원 * 6동 * 50%(비가림시설) | F22: 8,237 | G22: 13,800 | H22: 6,900 | I22: 6,900 | J22: 6,900 | K22: 6,900 | L22: 6,900
A23: 농정과 | B23: 호명면 설늠1길 54-5 장경석 | C23: 시설원예 노후하우스 기자재 지원 | D23: 민간자본사업보조 | E23: 2,100원 * 240평 * 50%(비닐교체) | F23: 301 | G23: 504 | H23: 252 | I23: 252 | J23: 252 | K23: 252 | L23: 252
A24: 농정과 | B24: 호명면 내신1길112(내신1) 김동하 외 3명 (대상자 내역 별지) | C24: 일손절감형기자재 | D24: 민간자본사업보조 | E24: 46,000,000원 * 1식 *50% | F24: 27,458 | G24: 46,000 | H24: 23,000 | I24: 23,000 | J24: 23,000 | K24: 23,000 | L24: 23,000
A25: 농정과 | B25: 보문면 독죽골길 73-15 김동칠외 49명 (대상자 내역 별지) | C25: 생강재배농가 관수시설 지원 | D25: 민간자본사업보조 | E25: 1,200,000원 * 50개소 * 50%(생강관수시설) | F25: 35,814 | G25: 60,000 | H25: 30,000 | I25: 30,000 | J25: 30,000 | K25: 30,000 | L25: 30,000
A26: 농정과 | B26: 예천읍 양궁로 83,102동 1605호 박병창 외 11명(대상자 내역 별지) | C26: 무청 건조시설 자재 지원 | D26: 민간자본사업보조 | E26: 25,000원 * 1,600개 * 50%(무청건조시설) | G26: 40,000 | H26: 20,000 | I26: 20,000 | J26: 20,000 | K26: 20,000 | L26: 20,000
A27: 농정과 | B27: 호명면 설늠1길 21-8 김종진 외 1명 (대상자 내역 별지) | C27: 민속채소양채류 생산기반 확충지원 | D27: 민간자본사업보조 | E27: 2,100,000원 * 2세트 * 50%(자동개폐기) | F27: 155,000 | G27: 4,200 | H27: =G27*0.5 -> 2,100 | I27: =G27*0.5 -> 2,100 | J27: =H27 -> 2,100 | K27: 2,100 | L27: 2,100
A28: 농정과 | B28: 용문면 금당실길 47 김은기 외 10명 (대상자 내역 별지) | C28: 농업에너지이용효율화사업 | D28: 민간자본사업보조 | E28: 2,500원 * 15,830㎡ * 50%(자동보온덮개) 13,000원 * 7,130㎡ * 50%(다겹보온커튼) | F28: 147,833 | G28: 137,265 | H28: 68,633 | I28: 68,632 | J28: 68,633 | K28: 68,633 | L28: 68,633
A29: 산림축산과 소계 | C29: =SUBTOTAL(103,C30:C49) -> 20 | F29: =SUBTOTAL(9,F30:F49) -> 181,845 | G29: =SUBTOTAL(9,G30:G49) -> 404,892 | H29: 223,634 | I29: 181,258 | J29: 223,634 | K29: 223,634 | L29: 223,634
A30: 산림축산과 | B30: 은풍면 은풍준시길 40-2 외 8명 (대상자 내역 별지) | C30: 곶감피해방지 저장건조시설 지원 | D30: 민간자본사업보조 | E30: 40,700,000원 * 1식 * 40% | G30: 40,700 | H30: 16,280 | I30: 24,420 | J30: 16,280 | K30: =J30 -> 16,280 | L30: =K30 -> 16,280
A31: 산림축산과 | B31: 예천읍 양궁로 김수호 | C31: 말 먹이용 조사료 지원사업 | D31: 민간자본사업보조 | E31: 700,000원 * 2두 * 70% | G31: 1,400 | H31: 980 | I31: 420 | J31: 980 | K31: =J31 -> 980 | L31: =K31 -> 980
A32: 산림축산과 | B32: 호명면 종산길 최강철 외 1명 (대상자 내역 별지) | C32: 음수처리 및 투약기 지원사업 | D32: 민간자본사업보조 | E32: 8,000,000원 * 2세트 * 60% | G32: 16,000 | H32: 9,600 | I32: 6,400 | J32: 9,600 | K32: 9,600 | L32: 9,600
A33: 산림축산과 | B33: 개포면 동소리길 변우성 외 7명 (대상자 내역 별지) | C33: 한우보정용 개체잠금장지 지원 | D33: 민간자본사업보조 | E33: 50,000원 * 86두 * 50% | G33: 4,300 | H33: 2,150 | I33: 2,150 | J33: 2,150 | K33: 2,150 | L33: 2,150
A34: 산림축산과 | B34: 지보면 암천길 김창덕 외 1명 (대상자 내역 별지) | C34: 한우 미네랄블럭 지원사업 | D34: 민간자본사업보조 | E34: 15,000원 * 18개 * 60% | G34: 270 | H34: 162 | I34: 108 | J34: 162 | K34: 162 | L34: 162
A35: 산림축산과 | B35: 흔풍염 부용봉길 정태원 | C35: 사료배합기 지원사업 | D35: 민간자본사업보조 | E35: 30,000,000원 * 1대 * 60% | G35: 30,000 | H35: 18,000 | I35: 12,000 | J35: 18,000 | K35: 18,000 | L35: 18,000
A36: 산림축산과 | B36: 용문면 큰맛질길 박영도 외 6명 (대상자 내역 별지) | C36: 면역강화용 사료첨가제 지원사업 | D36: 민간자본사업보조 | E36: 30,000원 * 800포 * 70% | G36: 24,000 | H36: 16,800 | I36: 7,200 | J36: 16,800 | K36: 16,800 | L36: 16,800
A37: 산림축산과 | B37: 유천면 밤고개길 임만주 외 2명 (대상자 내역 별지) | C37: 조사료 생산장비 지원사업 | D37: 민간자본사업보조 | E37: 40,000,000원 * 3대 * 60% | G37: 120,000 | H37: 72,000 | I37: 48,000 | J37: 72,000 | K37: 72,000 | L37: 72,000
A38: 산림축산과 | B38: 호명면 호명로 임재윤 외 42명 (대상자 내역 별지) | C38: 꿀벌화분 지원 | D38: 민간자본사업보조 | E38: 8,000원 * 1,900kg * 60% | F38: 27,840 | G38: 15,200 | H38: 9,120 | I38: 6,080 | J38: 9,120 | K38: 9,120 | L38: 9,120
A39: 산림축산과 | B39: 호명면 소망실길 양재범 외 5명 (대상자 내역 별지) | C39: 토종벌 종보전 지원 | D39: 민간자본사업보조 | E39: 500,000원 * 10군 * 80% | F39: 12,800 | G39: 5,000 | H39: 4,000 | I39: 1,000 | J39: 4,000 | K39: 4,000 | L39: 4,000
A40: 산림축산과 | B40: 용문면 큰맛질길 권영춘 외 5명 (대상자 내역 별지) | C40: 신품종 벌 보급용 벌통 지원 | D40: 민간자본사업보조 | E40: 30,000원 * 400군 * 50% | F40: 2,805 | G40: 12,000 | H40: 6,000 | I40: 6,000 | J40: 6,000 | K40: 6,000 | L40: 6,000
A41: 산림축산과 | B41: 예천읍 양궁로 김석호 외 1명 (대상자 내역 별지) | C41: 한우농가 송아지 절식마스크 지원 | D41: 민간자본사업보조 | E41: 7,000원 * 30개 * 60% | G41: 210 | H41: 126 | I41: 84 | J41: 126 | K41: 126 | L41: 126
A42: 산림축산과 | B42: 효자면 보리밭길 43-1 박수환 외 1 (대상자 내역 별지) | C42: 고품질액비생산시설(액비시설밀폐 및 악취저감시설) | D42: 민간자본사업보조 | E42: 20,000,000원*2개소*50% | F42: 70,000 | G42: =SUM(H42:I42) -> 40,000 | H42: 20,000 | I42: 20,000 | J42: =H42 -> 20,000 | K42: =I42 -> 20,000 | L42: 20,000
A43: 산림축산과 | B43: 예천읍 솔천지길 2-60 하태경 외 1 (대상자 내역 별지) | C43: 친환경 악취저감제 지원사업 | D43: 민간자본사업보조 | E43: 20,000원*105포*60% | F43: 8,400 | G43: =SUM(H43:I43) -> 2,100 | H43: 1,260 | I43: 840 | J43: =H43 -> 1,260 | K43: 1,260 | L43: 1,260
A44: 산림축산과 | B44: 예천읍 대심로 87 박호서 외 11 (대상자 내역 별지) | C44: 축산분뇨처리용 톱밥지원사업 | D44: 민간자본사업보조 | E44: 3,000원*2,432포*50% | F44: 60,000 | G44: 7,298 | H44: 3,649 | I44: 3,649 | J44: 3,649 | K44: 3,649 | L44: 3,649
A45: 산림축산과 | B45: 풍양면 낙상2길 29-6 윤대현 외 14 (대상자 내역 별지) | C45: 한우 기생충 구제 사업 | D45: 민간자본사업보조 | E45: 7,000원*751두*50% | G45: 5,414 | H45: 2,707 | I45: 2,707 | J45: 2,707 | K45: 2,707 | L45: 2,707
A46: 산림축산과 | B46: 호명면 종산길 100-80 최강철 | C46: 생산단계 HACCP 컨설팅 지원사업(산란계) | D46: 민간자본사업보조 | E46: 8,000,000원*1개소*70% | G46: 8,000 | H46: 5,600 | I46: 2,400 | J46: 5,600 | K46: 5,600 | L46: 5,600
A47: 산림축산과 | B47: 지보면 소화2길 105-13 최병용 | C47: 생산단계 HACCP 컨설팅 지원사업(한우) | D47: 민간자본사업보조 | E47: 6,000,000원*1개소*70% | G47: 6,000 | H47: 4,200 | I47: 1,800 | J47: 4,200 | K47: 4,200 | L47: 4,200
A48: 산림축산과 | B48: 예천읍 양궁로 83 박창섭 | C48: 착유세척수 처리 지원사업 | D48: 민간자본사업보조 | E48: 25,000,000원*1개소*40% | G48: 25,000 | H48: 10,000 | I48: 15,000 | J48: 10,000 | K48: 10,000 | L48: 10,000
A49: 산림축산과 | B49: 풍양면 신흥길 157 기오석 | C49: 축사용 농업 부산물 보관창고 신축 | D49: 민간자본사업보조 | E49: 42,000,000원*1식*50% | G49: 42,000 | H49: 21,000 | I49: 21,000 | J49: 21,000 | K49: 21,000 | L49: 21,000
A50: 농정과 소계 | C50: =SUBTOTAL(103,C51:C51) -> 1 | F50: =SUBTOTAL(9,F51:F51) -> 100,000 | G50: =SUBTOTAL(9,G51:G51) -> 72,000 | H50: =SUBTOTAL(9,H51:H51) -> 72,000 | I50: =SUBTOTAL(9,I51:I51) -> 0 | J50: =SUBTOTAL(9,J51:J51) -> 72,000 | K50: =SUBTOTAL(9,K51:K51) -> 72,000 | L50: =SUBTOTAL(9,L51:L51) -> 72,000
A51: 농업기술센터 | B51: 대상자별지내역 참조 | C51: 농심나눔쉼터조성 | D51: 민간자본사업보조 | E51: 12,000,000원*6개소 | F51: 100,000 | G51: 72,000 | H51: 72,000 | J51: 72,000 | K51: 72,000 | L51: =K51 -> 72,000

Sheet 대상자별지내역
A1: 제4회 예천군 보조금심의위원회 대상자내역 별지 조서
L2: (단위 : 천원)
A3: 부서명 | B3: 보 조 사 업 자 | D3: 보 조 사 업 명 | E3: 과목명 | F3: 사 업 내 용 | G3: 2016년 지원액 | H3: 계 | I3: 보조금 | J3: 자부담 | K3: 1차(해당부서) | L3: 2차(예산부서) | M3: 3차(위원회)
B4: 주소 | C4: 성명
A5: 소계 | C5: =SUBTOTAL(103,C6:C40) -> 35 | G5: =SUBTOTAL(9,G6:G40) -> 0 | H5: =SUBTOTAL(9,H6:H40) -> 21,000 | I5: 21,000 | J5: 0 | K5: 21,000 | L5: 21,000 | M5: 21,000
A6: 환경관리과 | B6: 예천읍 맛고을길 102 | C6: 황분애 | D6: 농촌빈집 정비지원 | E6: 민간자본사업보조 | F6: 농촌빈집정비지원 1식 * 600,000원 | H6: =I6 -> 600 | I6: 600 | K6: =I6 -> 600 | L6: =K6 -> 600 | M6: =L6 -> 600
A7: 환경관리과 | B7: 예천읍 청복리길 35 | C7: 김진희 | D7: 농촌빈집 정비지원 | E7: 민간자본사업보조 | F7: 농촌빈집정비지원 1식 * 600,000원 | H7: =I7 -> 600 | I7: 600 | K7: 600 | L7: =K7 -> 600 | M7: =L7 -> 600
A8: 환경관리과 | B8: 예천읍 상설시장1길 21-3 | C8: 이신효 | D8: 농촌빈집 정비지원 | E8: 민간자본사업보조 | F8: 농촌빈집정비지원 1식 * 600,000원 | H8: =I8 -> 600 | I8: 600 | K8: 600 | L8: 600 | M8: 600
A9: 환경관리과 | B9: 예천읍 양촌길 23-13 | C9: 정길수 | D9: 농촌빈집 정비지원 | E9: 민간자본사업보조 | F9: 농촌빈집정비지원 1식 * 600,000원 | H9: 600 | I9: 600 | K9: 600 | L9: 600 | M9: 600
A10: 환경관리과 | B10: 용문면 두천길 88-3 | C10: 손병우 | D10: 농촌빈집 정비지원 | E10: 민간자본사업보조 | F10: 농촌빈집정비지원 1식 * 600,000원 | H10: 600 | I10: 600 | K10: 600 | L10: 600 | M10: 600
A11: 환경관리과 | B11: 용문면 선동길 333-32 | C11: 정동욱 | D11: 농촌빈집 정비지원 | E11: 민간자본사업보조 | F11: 농촌빈집정비지원 1식 * 600,000원 | H11: 600 | I11: 600 | K11: 600 | L11: 600 | M11: 600
A12: 환경관리과 | B12: 용문면 맛질길 123-2 | C12: 권충강 | D12: 농촌빈집 정비지원 | E12: 민간자본사업보조 | F12: 농촌빈집정비지원 1식 * 600,000원 | H12: 600 | I12: 600 | K12: 600 | L12: 600 | M12: 600
A13: 환경관리과 | B13: 용문면 재달길 47-1 | C13: 권혁성 | D13: 농촌빈집 정비지원 | E13: 민간자본사업보조 | F13: 농촌빈집정비지원 1식 * 600,000원 | H13: 600 | I13: 600 | K13: 600 | L13: 600 | M13: 600
A14: 환경관리과 | B14: 효자면 독죽마을길 33-7 | C14: 김거부 | D14: 농촌빈집 정비지원 | E14: 민간자본사업보조 | F14: 농촌빈집정비지원 1식 * 600,000원 | H14: 600 | I14: 600 | K14: 600 | L14: 600 | M14: 600
A15: 환경관리과 | B15: 효자면 고항리 436 | C15: 진창태 | D15: 농촌빈집 정비지원 | E15: 민간자본사업보조 | F15: 농촌빈집정비지원 1식 * 600,000원 | H15: 600 | I15: 600 | K15: 600 | L15: 600 | M15: 600
A16: 환경관리과 | B16: 효자면 백석길 194-5 | C16: 김형준 | D16: 농촌빈집 정비지원 | E16: 민간자본사업보조 | F16: 농촌빈집정비지원 1식 * 600,000원 | H16: 600 | I16: 600 | K16: 600 | L16: 600 | M16: 600
A17: 환경관리과 | B17: 은풍면 우곡리 65-4 | C17: 김봉덕 | D17: 농촌빈집 정비지원 | E17: 민간자본사업보조 | F17: 농촌빈집정비지원 1식 * 600,000원 | H17: 600 | I17: 600 | K17: 600 | L17: 600 | M17: 600
A18: 환경관리과 | B18: 감천면 만맛길43-31 | C18: 장수환 | D18: 농촌빈집 정비지원 | E18: 민간자본사업보조 | F18: 농촌빈집정비지원 1식 * 600,000원 | H18: 600 | I18: 600 | K18: 600 | L18: 600 | M18: 600
A19: 환경관리과 | B19: 보문면 작곡리 526-7 | C19: 박미자 | D19: 농촌빈집 정비지원 | E19: 민간자본사업보조 | F19: 농촌빈집정비지원 1식 * 600,000원 | H19: 600 | I19: 600 | K19: 600 | L19: 600 | M19: 600
A20: 환경관리과 | B20: 보문면 막실길 56-13 | C20: 윤영수 | D20: 농촌빈집 정비지원 | E20: 민간자본사업보조 | F20: 농촌빈집정비지원 1식 * 600,000원 | H20: 600 | I20: 600 | K20: 600 | L20: 600 | M20: 600
A21: 환경관리과 | B21: 보문면 신운길 151-6 | C21: 오대경 | D21: 농촌빈집 정비지원 | E21: 민간자본사업보조 | F21: 농촌빈집정비지원 1식 * 600,000원 | H21: 600 | I21: 600 | K21: 600 | L21: 600 | M21: 600
A22: 환경관리과 | B22: 보문면 미호길 179-1 | C22: 윤기혁 | D22: 농촌빈집 정비지원 | E22: 민간자본사업보조 | F22: 농촌빈집정비지원 1식 * 600,000원 | H22: 600 | I22: 600 | K22: 600 | L22: 600 | M22: 600
A23: 환경관리과 | B23: 보문면 미호길 167-12 | C23: 윤정현 | D23: 농촌빈집 정비지원 | E23: 민간자본사업보조 | F23: 농촌빈집정비지원 1식 * 600,000원 | H23: 600 | I23: 600 | K23: 600 | L23: 600 | M23: 600
A24: 환경관리과 | B24: 호명면 담암길 73-16 | C24: 박점순 | D24: 농촌빈집 정비지원 | E24: 민간자본사업보조 | F24: 농촌빈집정비지원 1식 * 600,000원 | H24: 600 | I24: 600 | K24: 600 | L24: 600 | M24: 600
A25: 환경관리과 | B25: 호명면 내신1길 244 | C25: 이영근 | D25: 농촌빈집 정비지원 | E25: 민간자본사업보조 | F25: 농촌빈집정비지원 1식 * 600,000원 | H25: 600 | I25: 600 | K25: 600 | L25: 600 | M25: 600
A26: 환경관리과 | B26: 호명면 두들마길 12 | C26: 이충희 | D26: 농촌빈집 정비지원 | E26: 민간자본사업보조 | F26: 농촌빈집정비지원 1식 * 600,000원 | H26: 600 | I26: 600 | K26: 600 | L26: 600 | M26: 600
A27: 환경관리과 | B27: 호명면 한어길 262-7 | C27: 노영배 | D27: 농촌빈집 정비지원 | E27: 민간자본사업보조 | F27: 농촌빈집정비지원 1식 * 600,000원 | H27: 600 | I27: 600 | K27: 600 | L27: 600 | M27: 600
A28: 환경관리과 | B28: 호명면 종산길 315-1 | C28: 황건호 | D28: 농촌빈집 정비지원 | E28: 민간자본사업보조 | F28: 농촌빈집정비지원 1식 * 600,000원 | H28: 600 | I28: 600 | K28: 600 | L28: 600 | M28: 600
A29: 환경관리과 | B29: 호명면 백송길 7-12 | C29: 권기웅 | D29: 농촌빈집 정비지원 | E29: 민간자본사업보조 | F29: 농촌빈집정비지원 1식 * 600,000원 | H29: 600 | I29: 600 | K29: 600 | L29: 600 | M29: 600
A30: 환경관리과 | B30: 개포면 금리 146 | C30: 한극환 | D30: 농촌빈집 정비지원 | E30: 민간자본사업보조 | F30: 농촌빈집정비지원 1식 * 600,000원 | H30: 600 | I30: 600 | K30: 600 | L30: 600 | M30: 600
A31: 환경관리과 | B31: 개포면 이사리길 28 | C31: 신정옥 | D31: 농촌빈집 정비지원 | E31: 민간자본사업보조 | F31: 농촌빈집정비지원 1식 * 600,000원 | H31: 600 | I31: 600 | K31: 600 | L31: 600 | M31: 600
A32: 환경관리과 | B32: 개포면 송담길 42-21 | C32: 남효윤 | D32: 농촌빈집 정비지원 | E32: 민간자본사업보조 | F32: 농촌빈집정비지원 1식 * 600,000원 | H32: 600 | I32: 600 | K32: 600 | L32: 600 | M32: 600
A33: 환경관리과 | B33: 지보면 소화3길 122-3 | C33: 이재용 | D33: 농촌빈집 정비지원 | E33: 민간자본사업보조 | F33: 농촌빈집정비지원 1식 * 600,000원 | H33: 600 | I33: 600 | K33: 600 | L33: 600 | M33: 600
A34: 환경관리과 | B34: 지보면 지풍로 501-3 | C34: 최병일 | D34: 농촌빈집 정비지원 | E34: 민간자본사업보조 | F34: 농촌빈집정비지원 1식 * 600,000원 | H34: 600 | I34: 600 | K34: 600 | L34: 600 | M34: 600
A35: 환경관리과 | B35: 지보면 만화리 439 | C35: 전재동 | D35: 농촌빈집 정비지원 | E35: 민간자본사업보조 | F35: 농촌빈집정비지원 1식 * 600,000원 | H35: 600 | I35: 600 | K35: 600 | L35: 600 | M35: 600
A36: 환경관리과 | B36: 지보면 신풍길 13 | C36: 윤화식 | D36: 농촌빈집 정비지원 | E36: 민간자본사업보조 | F36: 농촌빈집정비지원 1식 * 600,000원 | H36: 600 | I36: 600 | K36: 600 | L36: 600 | M36: 600
A37: 환경관리과 | B37: 지보면 마전리 503-2 | C37: 현장섭 | D37: 농촌빈집 정비지원 | E37: 민간자본사업보조 | F37: 농촌빈집정비지원 1식 * 600,000원 | H37: 600 | I37: 600 | K37: 600 | L37: 600 | M37: 600
A38: 환경관리과 | B38: 풍양면 풍덕길 110 | C38: 최병창 | D38: 농촌빈집 정비지원 | E38: 민간자본사업보조 | F38: 농촌빈집정비지원 1식 * 600,000원 | H38: 600 | I38: 600 | K38: 600 | L38: 600 | M38: 600
A39: 환경관리과 | B39: 풍양면 오지길 57-1 | C39: 오복순 | D39: 농촌빈집 정비지원 | E39: 민간자본사업보조 | F39: 농촌빈집정비지원 1식 * 600,000원 | H39: 600 | I39: 600 | K39: 600 | L39: 600 | M39: 600
A40: 환경관리과 | B40: 풍양면 하풍길 48-5 | C40: 정점이 | D40: 농촌빈집 정비지원 | E40: 민간자본사업보조 | F40: 농촌빈집정비지원 1식 * 600,000원 | H40: 600 | I40: 600 | K40: 600 | L40: 600 | M40: 600
A41: 소계 | C41: =SUBTOTAL(103,C42:C303) -> 262 | G41: =SUBTOTAL(9,G42:G303) -> 0 | H41: =SUBTOTAL(9,H42:H303) -> 1,634,305 | I41: 841,753 | J41: 791,553 | K41: 841,753 | L41: 841,753 | M41: 841,753
A42: 농정과 | B42: 보문면 미호길 86 | C42: 조인선 | D42: 우수농산물 포장재 개선 지원사업 | E42: 민간자본사업보조 | F42: 농산물포장재 5천원*3,000매*70% | H42: 15,000 | I42: 10,500 | J42: 4,500 | K42: =I42 -> 10,500 | L42: =K42 -> 10,500 | M42: =L42 -> 10,500
A43: 농정과 | B43: 용문면 하학길 50 | C43: 유승호 | D43: 우수농산물 포장재 개선 지원사업 | E43: 민간자본사업보조 | F43: 농산물포장재 1천원*5,000매*70% | H43: 5,000 | I43: 3,500 | J43: 1,500 | K43: 3,500 | L43: =K43 -> 3,500 | M43: =L43 -> 3,500
A44: 농정과 | B44: 보문면 보문로 583 | C44: 김상동 | D44: 우수농산물 포장재 개선 지원사업 | E44: 민간자본사업보조 | F44: 농산물포장재 5천원*3,000매*70% | H44: 15,000 | I44: 10,500 | J44: 3,500 | K44: 10,500 | L44: 10,500 | M44: 10,500
A45: 농정과 | B45: 유천면 송정길 8-3 | C45: 장기환 | D45: 우수농산물 포장재 개선 지원사업 | E45: 민간자본사업보조 | F45: 잡곡포장재 1천원*3,000매*70% | H45: 3,000 | I45: 2,100 | J45: 900 | K45: 2,100 | L45: 2,100 | M45: 2,100
A46: 농정과 | B46: 풍양면 신흥길 156 | C46: 기영석 | D46: 우수농산물 포장재 개선 지원사업 | E46: 민간자본사업보조 | F46: 농산물포장재 5천원*2,000매*70% | H46: 10,000 | I46: 7,000 | J46: 3,000 | K46: 7,000 | L46: 7,000 | M46: 7,000
A47: 농정과 | B47: 용궁면 용궁로 148 | C47: 곽정희 | D47: 우수농산물 포장재 개선 지원사업 | E47: 민간자본사업보조 | F47: 농산물포장재 5천원*3,000매*70% | H47: 15,000 | I47: 10,500 | J47: 4,500 | K47: 10,500 | L47: 10,500 | M47: 10,500
A48: 농정과 | B48: 지보면 지보길 62 | C48: 조현범 | D48: 우수농산물 포장재 개선 지원사업 | E48: 민간자본사업보조 | F48: 대추포장재 2천원*3,500원*70% | H48: 7,000 | I48: 4,900 | J48: 2,100 | K48: =I48 -> 4,900 | L48: 4,900 | M48: 4,900
A49: 농정과 | B49: 예천읍 효자로 118 | C49: 박영돈 | D49: 우수농산물 포장재 개선 지원사업 | E49: 민간자본사업보조 | F49: 농산물포장재 2천원*10,000매*70% | H49: 20,000 | I49: 14,000 | J49: 6,000 | K49: 14,000 | L49: 14,000 | M49: 14,000
A50: 농정과 | B50: 용문면 우망골길 108 | C50: 손진욱 | D50: 우수농산물 포장재 개선 지원사업 | E50: 민간자본사업보조 | F50: 농산물포장재 2천원*1,500매*70% | H50: 3,000 | I50: 2,100 | J50: 900 | K50: 2,100 | L50: 2,100 | M50: 2,100
A51: 농정과 | B51: 용궁면 회룡길 186 | C51: 조현동 | D51: 우수농산물 포장재 개선 지원사업 | E51: 민간자본사업보조 | F51: 농산물포장재 5천원*2,000매*70% | H51: 10,000 | I51: 7,000 | J51: 3,000 | K51: 7,000 | L51: 7,000 | M51: 7,000
A52: 농정과 | B52: 용문면 금당실길 51-11 | C52: 박우상 | D52: 우수농산물 포장재 개선 지원사업 | E52: 민간자본사업보조 | F52: 농산물포장재 1천원*5,000매*70% | H52: 5,000 | I52: 3,500 | J52: 1,500 | K52: 3,500 | L52: 3,500 | M52: 3,500
A53: 농정과 | B53: 예천읍 대심3길 28-5 | C53: 이석종 | D53: 우수농산물 포장재 개선 지원사업 | E53: 민간자본사업보조 | F53: 농산물포장재 3천원*5,000매*70% | H53: 15,000 | I53: 10,500 | J53: 4,500 | K53: 10,500 | L53: 10,500 | M53: 10,500
A54: 농정과 | B54: 은풍면 율곡1길 19 | C54: 김인수 | D54: 중소형농기계 지원사업 | E54: 민간자본사업보조 | F54: 2,000,000원*1대*50% | H54: 2,000 | I54: 1,000 | J54: 1,000 | K54: 1,000 | L54: 1,000 | M54: 1,000
A55: 농정과 | B55: 은풍면 은풍로 78-3 | C55: 박종열 | D55: 중소형농기계 지원사업 | E55: 민간자본사업보조 | F55: 2,000,000원*1대*50% | H55: 2,000 | I55: 1,000 | J55: 1,000 | K55: 1,000 | L55: 1,000 | M55: 1,000
A56: 농정과 | B56: 호명면 내신1길 248-5 | C56: 이원희 | D56: 중소형농기계 지원사업 | E56: 민간자본사업보조 | F56: 2,000,000원*1대*50% | H56: 2,000 | I56: 1,000 | J56: 1,000 | K56: 1,000 | L56: 1,000 | M56: 1,000
A57: 농정과 | B57: 유천면 교동길 120-1 | C57: 장상원 | D57: 중소형농기계 지원사업 | E57: 민간자본사업보조 | F57: 2,000,000원*1대*50% | H57: 2,000 | I57: 1,000 | J57: 1,000 | K57: 1,000 | L57: 1,000 | M57: 1,000
A58: 농정과 | B58: 호명면 소망실길 39 | C58: 박용준 | D58: 중소형농기계 지원사업 | E58: 민간자본사업보조 | F58: 2,000,000원*1대*50% | H58: 2,000 | I58: 1,000 | J58: 1,000 | K58: 1,000 | L58: 1,000 | M58: 1,000
A59: 농정과 | B59: 감천면 중산길 1 | C59: 이상섭 | D59: 중소형농기계 지원사업 | E59: 민간자본사업보조 | F59: 2,000,000원*1대*50% | H59: 2,000 | I59: 1,000 | J59: 1,000 | K59: 1,000 | L59: 1,000 | M59: 1,000
A60: 농정과 | B60: 감천면 새실길 2-24 | C60: 송인한 | D60: 중소형농기계 지원사업 | E60: 민간자본사업보조 | F60: 2,000,000원*1대*50% | H60: 2,000 | I60: 1,000 | J60: 1,000 | K60: 1,000 | L60: 1,000 | M60: 1,000
A61: 농정과 | B61: 감천면 미석2길 81-14 | C61: 권용덕 | D61: 중소형농기계 지원사업 | E61: 민간자본사업보조 | F61: 2,000,000원*1대*50% | H61: 2,000 | I61: 1,000 | J61: 1,000 | K61: 1,000 | L61: 1,000 | M61: 1,000
A62: 농정과 | B62: 지보면 만화1길 38-19 | C62: 이창남 | D62: 중소형농기계 지원사업 | E62: 민간자본사업보조 | F62: 2,000,000원*1대*50% | H62: 2,000 | I62: 1,000 | J62: 1,000 | K62: 1,000 | L62: 1,000 | M62: 1,000
A63: 농정과 | B63: 지보면 신풍1리길 55 | C63: 윤종순 | D63: 중소형농기계 지원사업 | E63: 민간자본사업보조 | F63: 2,000,000원*1대*50% | H63: 2,000 | I63: 1,000 | J63: 1,000 | K63: 1,000 | L63: 1,000 | M63: 1,000
A64: 농정과 | B64: 지보면 암천길 73-8 | C64: 임용년 | D64: 중소형농기계 지원사업 | E64: 민간자본사업보조 | F64: 2,000,000원*1대*50% | H64: 2,000 | I64: 1,000 | J64: 1,000 | K64: 1,000 | L64: 1,000 | M64: 1,000
A65: 농정과 | B65: 지보면 지보로 168-15 | C65: 김수환 | D65: 중소형농기계 지원사업 | E65: 민간자본사업보조 | F65: 2,000,000원*1대*50% | H65: 2,000 | I65: 1,000 | J65: 1,000 | K65: 1,000 | L65: 1,000 | M65: 1,000
A66: 농정과 | B66: 효자면 은풍로 603-34 | C66: 임병호 | D66: 중소형농기계 지원사업 | E66: 민간자본사업보조 | F66: 2,000,000원*1대*50% | H66: 2,000 | I66: 1,000 | J66: 1,000 | K66: 1,000 | L66: 1,000 | M66: 1,000
A67: 농정과 | B67: 유천면 죽안길 102 | C67: 고복남 | D67: 중소형농기계 지원사업 | E67: 민간자본사업보조 | F67: 2,000,000원*1대*50% | H67: 2,000 | I67: 1,000 | J67: 1,000 | K67: 1,000 | L67: 1,000 | M67: 1,000
A68: 농정과 | B68: 풍양면 오지길 93 | C68: 오부석 | D68: 중소형농기계 지원사업 | E68: 민간자본사업보조 | F68: 2,000,000원*1대*50% | H68: 2,000 | I68: 1,000 | J68: 1,000 | K68: 1,000 | L68: 1,000 | M68: 1,000
A69: 농정과 | B69: 풍양면 덕암로 1251 | C69: 황운영 | D69: 중소형농기계 지원사업 | E69: 민간자본사업보조 | F69: 2,000,000원*1대*50% | H69: 2,000 | I69: 1,000 | J69: 1,000 | K69: 1,000 | L69: 1,000 | M69: 1,000
A70: 농정과 | B70: 풍양면 풍지로 163 | C70: 유영창 | D70: 중소형농기계 지원사업 | E70: 민간자본사업보조 | F70: 2,000,000원*1대*50% | H70: 2,000 | I70: 1,000 | J70: 1,000 | K70: 1,000 | L70: 1,000 | M70: 1,000
A71: 농정과 | B71: 용궁면 경암길 12-1 | C71: 김상현 | D71: 중소형농기계 지원사업 | E71: 민간자본사업보조 | F71: 2,000,000원*1대*50% | H71: 2,000 | I71: 1,000 | J71: 1,000 | K71: 1,000 | L71: 1,000 | M71: 1,000
A72: 농정과 | B72: 예천읍 효자로 132-1 | C72: 유미명 | D72: 중소형농기계 지원사업 | E72: 민간자본사업보조 | F72: 2,000,000원*1대*50% | H72: 2,000 | I72: 1,000 | J72: 1,000 | K72: 1,000 | L72: 1,000 | M72: 1,000
A73: 농정과 | B73: 개포면 우감2길 44-9 | C73: 이순이 | D73: 중소형농기계 지원사업 | E73: 민간자본사업보조 | F73: 2,000,000원*1대*50% | H73: 2,000 | I73: 1,000 | J73: 1,000 | K73: 1,000 | L73: 1,000 | M73: 1,000
A74: 농정과 | B74: 용문면 덕신길 215 | C74: 안정희 | D74: 중소형농기계 지원사업 | E74: 민간자본사업보조 | F74: 2,000,000원*1대*50% | H74: 2,000 | I74: 1,000 | J74: 1,000 | K74: 1,000 | L74: 1,000 | M74: 1,000
A75: 농정과 | B75: 용문면 사부령길 119 | C75: 김의주 | D75: 중소형농기계 지원사업 | E75: 민간자본사업보조 | F75: 2,000,000원*1대*50% | H75: 2,000 | I75: 1,000 | J75: 1,000 | K75: 1,000 | L75: 1,000 | M75: 1,000
A76: 농정과 | B76: 용문면 우망골길 99 | C76: 임용규 | D76: 중소형농기계 지원사업 | E76: 민간자본사업보조 | F76: 2,000,000원*1대*50% | H76: 2,000 | I76: 1,000 | J76: 1,000 | K76: 1,000 | L76: 1,000 | M76: 1,000
A77: 농정과 | B77: 호명면 양궁로 843 | C77: 박순서 | D77: 중소형농기계 지원사업 | E77: 민간자본사업보조 | F77: 2,000,000원*1대*50% | H77: 2,000 | I77: 1,000 | J77: 1,000 | K77: 1,000 | L77: 1,000 | M77: 1,000
A78: 농정과 | B78: 예천읍 왕신1리길 62-7 | C78: 최정호 | D78: 중소형농기계 지원사업 | E78: 민간자본사업보조 | F78: 2,000,000원*1대*50% | H78: 2,000 | I78: 1,000 | J78: 1,000 | K78: 1,000 | L78: 1,000 | M78: 1,000
A79: 농정과 | B79: 예천읍 왕신길 258-3 | C79: 김복영 | D79: 중소형농기계 지원사업 | E79: 민간자본사업보조 | F79: 2,000,000원*1대*50% | H79: 2,000 | I79: 1,000 | J79: 1,000 | K79: 1,000 | L79: 1,000 | M79: 1,000
A80: 농정과 | B80: 예천읍 봉덕로 52 | C80: 강영묵 | D80: 중소형농기계 지원사업 | E80: 민간자본사업보조 | F80: 2,000,000원*1대*50% | H80: 2,000 | I80: 1,000 | J80: 1,000 | K80: 1,000 | L80: 1,000 | M80: 1,000
A81: 농정과 | B81: 풍양면 우망길 356-2 | C81: 정상무 | D81: 중소형농기계 지원사업 | E81: 민간자본사업보조 | F81: 2,000,000원*1대*50% | H81: 2,000 | I81: 1,000 | J81: 1,000 | K81: 1,000 | L81: 1,000 | M81: 1,000
A82: 농정과 | B82: 호명면 새랄길 71-2 | C82: 최길수 | D82: 중소형농기계 지원사업 | E82: 민간자본사업보조 | F82: 2,000,000원*1대*50% | H82: 2,000 | I82: 1,000 | J82: 1,000 | K82: 1,000 | L82: 1,000 | M82: 1,000
A83: 농정과 | B83: 호명면 행갈로 107 | C83: 김민현 | D83: 해충포획기 지원사업 | E83: 민간자본사업보조 | F83: 1,000,000원*1대*50% | H83: 1,000 | I83: 500 | J83: 500 | K83: 500 | L83: 500 | M83: 500
A84: 농정과 | B84: 호명면 양궁로 846 | C84: 김성심 | D84: 해충포획기 지원사업 | E84: 민간자본사업보조 | F84: 1,000,000원*1대*50% | H84: 1,000 | I84: 500 | J84: 500 | K84: 500 | L84: 500 | M84: 500
A85: 농정과 | B85: 지보면 대죽길 105-1 | C85: 류명기 | D85: 소규모 벼 육묘공장 지원사업 | E85: 민간자본사업보조 | F85: 42,000,000원 * 1동 * 50% | H85: =SUM(I85:J85) -> 42,000 | I85: 21,000 | J85: 21,000 | K85: =I85 -> 21,000 | L85: 21,000 | M85: 21,000
A86: 종정과 | B86: 풍양면 산림길 118 | C86: 이재환 | D86: 소규모 벼 육묘공장 지원사업 | E86: 민간자본사업보조 | F86: 42,000,000원 * 1동 * 50% | H86: =SUM(I86:J86) -> 42,000 | I86: 21,000 | J86: 21,000 | K86: =I86 -> 21,000 | L86: 21,000 | M86: 21,000
A87: 농정과 | B87: 개포면 솔골길 24 | C87: 이상영 | D87: 소규모 벼 육묘공장 지원사업 | E87: 민간자본사업보조 | F87: 42,000,000원 * 1동 * 50% | H87: =SUM(I87:J87) -> 42,000 | I87: 21,000 | J87: 21,000 | K87: =I87 -> 21,000 | L87: 21,000 | M87: 21,000
A88: 농정과 | B88: 효자면 텃골길 106 | C88: 강구정 | D88: 다목적농가형저온저장고(33㎡)지원 | E88: 민간자본사업보조 | F88: 20,000,000원 * 1동 *50% | H88: 20,000 | I88: 10,000 | J88: 10,000 | K88: 10,000 | L88: 10,000 | M88: 10,000
A89: 농정과 | B89: 은풍면 부용봉길 223-21 | C89: 윤여준 | D89: 다목적농가형저온저장고(33㎡)지원 | E89: 민간자본사업보조 | F89: 20,000,000원 * 1동 *50% | H89: 20,000 | I89: 10,000 | J89: 10,000 | K89: 10,000 | L89: 10,000 | M89: 10,000
A90: 농정과 | B90: 은풍면 조고리길 89-1 | C90: 권안석 | D90: 다목적농가형저온저장고(33㎡)지원 | E90: 민간자본사업보조 | F90: 20,000,000원 * 1동 *50% | H90: 20,000 | I90: 10,000 | J90: 10,000 | K90: 10,000 | L90: 10,000 | M90: 10,000
A91: 농정과 | B91: 감천면 석송로 247-4 | C91: 권상덕 | D91: 다목적농가형저온저장고(33㎡)지원 | E91: 민간자본사업보조 | F91: 20,000,000원 * 1동 *50% | H91: 20,000 | I91: 10,000 | J91: 10,000 | K91: 10,000 | L91: 10,000 | M91: 10,000
A92: 농정과 | B92: 풍양면 신흥길 238-14 | C92: 허노도 | D92: 다목적농가형저온저장고(33㎡)지원 | E92: 민간자본사업보조 | F92: 20,000,000원 * 1동 *50% | H92: 20,000 | I92: 10,000 | J92: 10,000 | K92: 10,000 | L92: 10,000 | M92: 10,000
A93: 농정과 | B93: 은풍면 율곡1길 17 | C93: 장형식 | D93: 다목적농가형저온저장고(33㎡)지원 | E93: 민간자본사업보조 | F93: 20,000,000원 * 1동 *50% | H93: 20,000 | I93: 10,000 | J93: 10,000 | K93: 10,000 | L93: 10,000 | M93: 10,000
A94: 농정과 | B94: 용문면 용문경천로 874-1 | C94: 정연옥 | D94: 다목적리프트기, 승용예초기지원 | E94: 민간자본사업보조 | F94: 다목적리프트기9,000,000원 * 1대 *50% | H94: 9,000 | I94: 4,500 | J94: 4,500 | K94: 4,500 | L94: 4,500 | M94: 4,500
A95: 농정과 | B95: 효자면 새별길 27-3 | C95: 전석한 | D95: 다목적리프트기, 승용예초기지원 | E95: 민간자본사업보조 | F95: 다목적리프트기9,000,000원 * 1대 *50% | H95: 9,000 | I95: 4,500 | J95: 4,500 | K95: 4,500 | L95: 4,500 | M95: 4,500
A96: 농정과 | B96: 개포면 종산골길 99 | C96: 이현부 | D96: 다목적리프트기, 승용예초기지원 | E96: 민간자본사업보조 | F96: 다목적리프트기9,000,000원 * 1대 *50% | H96: 9,000 | I96: 4,500 | J96: 4,500 | K96: 4,500 | L96: 4,500 | M96: 4,500
A97: 농정과 | B97: 용문면 금당실길 47 | C97: 김은기 | D97: 농업에너지이용효율화 지원 (다겹보온커튼) | E97: 민간자본사업보조 | F97: 13,000원 * 2,850㎡ * 50% | H97: 37,050 | I97: =H97*0.5 -> 18,525 | J97: =H97*0.5 -> 18,525 | K97: =H97*0.5 -> 18,525 | L97: 18,525 | M97: 18,525
A98: 농정과 | B98: 용문면 덕신길 184 | C98: 임창길 | D98: 농업에너지이용효율화 지원 (다겹보온커튼) | E98: 민간자본사업보조 | F98: 13,000원 * 2,280㎡ * 50% | H98: 29,640 | I98: 14,820 | J98: 14,820 | K98: 14,820 | L98: 14,820 | M98: 14,820
A99: 농정과 | B99: 용문면 복천길 80-8 | C99: 신대영 | D99: 농업에너지이용효율화 지원 (다겹보온커튼) | E99: 민간자본사업보조 | F99: 13,000원 * 2,000㎡ * 50% | H99: 26,000 | I99: 13,000 | J99: 13,000 | K99: 13,000 | L99: 13,000 | M99: 13,000
A100: 농정과 | B100: 지보면 암천길 53-9 | C100: 임흥수 | D100: 농업에너지이용효율화 지원 (자동보온덮개) | E100: 민간자본사업보조 | F100: 2,500원 * 2,000㎡ * 50% | H100: 5,000 | I100: 2,500 | J100: 2,500 | K100: 2,500 | L100: 2,500 | M100: 2,500
A101: 농정과 | B101: 용궁면 무이서당길 167 | C101: 이봉희 | D101: 농업에너지이용효율화 지원 (자동보온덮개) | E101: 민간자본사업보조 | F101: 2,500원 * 1,500㎡ * 50% | H101: 3,750 | I101: 1,875 | J101: 1,875 | K101: 1,875 | L101: 1,875 | M101: 1,875
A102: 농정과 | B102: 용문면 금당실길 47 | C102: 김은기 | D102: 농업에너지이용효율화 지원 (자동보온덮개) | E102: 민간자본사업보조 | F102: 2,500원 * 2,850㎡ * 50% | H102: 7,125 | I102: 3,563 | J102: 3,563 | K102: 3,563 | L102: 3,563 | M102: 3,563
A103: 농정과 | B103: 용문면 덕신길 184 | C103: 임창길 | D103: 농업에너지이용효율화 지원 (자동보온덮개) | E103: 민간자본사업보조 | F103: 2,500원 * 2,280㎡ * 50% | H103: 5,700 | I103: 2,850 | J103: 2,850 | K103: 2,850 | L103: 2,850 | M103: 2,850
A104: 농정과 | B104: 용문면 복천길 80-8 | C104: 신대영 | D104: 농업에너지이용효율화 지원 (자동보온덮개) | E104: 민간자본사업보조 | F104: 2,500원 * 2,000㎡ * 50% | H104: 5,000 | I104: 2,500 | J104: 2,500 | K104: 2,500 | L104: 2,500 | M104: 2,500
A105: 농정과 | B105: 호명면 내신1길104-3 | C105: 김현수 | D105: 농업에너지이용효율화 지원 (자동보온덮개) | E105: 민간자본사업보조 | F105: 2,500원 * 2,400㎡ * 50% | H105: 6,000 | I105: 3,000 | J105: 3,000 | K105: 3,000 | L105: 3,000 | M105: 3,000
A106: 농정과 | B106: 호명면 인포길16-7 | C106: 우상윤 | D106: 농업에너지이용효율화 지원 (자동보온덮개) | E106: 민간자본사업보조 | F106: 2,500원 * 800㎡ * 50% | H106: 2,000 | I106: 1,000 | J106: 1,000 | K106: 1,000 | L106: 1,000 | M106: 1,000
A107: 농정과 | B107: 호명면 신촌길 102 | C107: 천동석 | D107: 농업에너지이용효율화 지원 (자동보온덮개) | E107: 민간자본사업보조 | F107: 2,500원 * 4,000㎡ * 50% | H107: 10,000 | I107: 5,000 | J107: 5,000 | K107: 5,000 | L107: =K107 -> 5,000 | M107: =L107 -> 5,000
A108: 농정과 | B108: 호명면 설늠1길 21-8 | C108: 김종진 | D108: 민속채소양채류 생산기반 확충지원 (자동개폐기) | E108: 민간자본사업보조 | F108: 2,100,000원 * 1세트 * 50% | H108: 2,100 | I108: 1,050 | J108: 1,050 | K108: 1,050 | L108: 1,050 | M108: 1,050
A109: 농정과 | B109: 호명면 설늠1길 17-13 | C109: 이상국 | D109: 민속채소양채류 생산기반 확충지원 (자동개폐기) | E109: 민간자본사업보조 | F109: 2,100,000원 * 1세트 * 50% | H109: 2,100 | I109: 1,050 | J109: 1,050 | K109: 1,050 | L109: 1,050 | M109: 1,050
A110: 농정과 | B110: 예천읍 왕신길 260 | C110: 이남규 | D110: 소득작목육성 지원사업(po필름) | E110: 민간자본사업보조 | F110: 4,000원 * 2,810㎡ * 50% | H110: 11,240 | I110: 5,620 | J110: 5,620 | K110: 5,620 | L110: 5,620 | M110: 5,620
A111: 농정과 | B111: 용문면 덕신길 184 | C111: 임창길 | D111: 소득작목육성 지원사업(po필름) | E111: 민간자본사업보조 | F111: 4,000원 * 1,400㎡ * 50% | H111: 5,600 | I111: 2,800 | J111: 2,800 | K111: 2,800 | L111: 2,800 | M111: 2,800
A112: 농정과 | B112: 호명면 설늠1길 54-5 | C112: 장경석 | D112: 소득작목육성 지원사업(po필름) | E112: 민간자본사업보조 | F112: 4,000원 * 600㎡ * 50% | H112: 2,400 | I112: 1,200 | J112: 1,200 | K112: 1,200 | L112: 1,200 | M112: 1,200
A113: 농정과 | B113: 호명면 설늠1길 17-13 | C113: 이상국 | D113: 소득작목육성 지원사업(po필름) | E113: 민간자본사업보조 | F113: 4,000원 * 2,400㎡ * 50% | H113: 9,600 | I113: 4,800 | J113: 4,800 | K113: 4,800 | L113: 4,800 | M113: 4,800
A114: 농정과 | B114: 호명면 산합길 87 | C114: 박수만 | D114: 소득작목육성 지원사업(po필름) | E114: 민간자본사업보조 | F114: 4,000원 * 600㎡ * 50% | H114: 2,400 | I114: 1,200 | J114: 1,200 | K114: 1,200 | L114: 1,200 | M114: 1,200
A115: 농정과 | B115: 용문면 금당실길 47 | C115: 김은기 | D115: 소득작목육성 지원사업(내재형하우스) | E115: 민간자본사업보조 | F115: 20,000원 * 2,850㎡ * 50% | H115: 57,000 | I115: 28,500 | J115: 28,500 | K115: 28,500 | L115: 28,500 | M115: 28,500
A116: 농정과 | B116: 용문면 덕신길 184 | C116: 임창길 | D116: 소득작목육성 지원사업(내재형하우스) | E116: 민간자본사업보조 | F116: 20,000원 * 2,280㎡ * 50% | H116: 45,600 | I116: 22,800 | J116: 22,800 | K116: 22,800 | L116: 22,800 | M116: 22,800
A117: 농정과 | B117: 용문면 복천길 80-8 | C117: 신대영 | D117: 소득작목육성 지원사업(내재형하우스) | E117: 민간자본사업보조 | F117: 20,000원 * 2,000㎡ * 50% | H117: 40,000 | I117: 20,000 | J117: 20,000 | K117: 20,000 | L117: 20,000 | M117: 20,000
A118: 농정과 | B118: 예천읍 봉덕로52 | C118: 구연해 | D118: 소형이동식저온저장고 | E118: 민간자본사업보조 | F118: 6,000,000원 * 1동 * 50% | H118: 6,000 | I118: 3,000 | J118: 3,000 | K118: 3,000 | L118: 3,000 | M118: 3,000
A119: 농정과 | B119: 예천읍 석정길245-6 | C119: 김진규 | D119: 소형이동식저온저장고 | E119: 민간자본사업보조 | F119: 6,000,000원 * 1동 * 50% | H119: 6,000 | I119: 3,000 | J119: 3,000 | K119: 3,000 | L119: 3,000 | M119: 3,000
A120: 농정과 | B120: 예천읍 왕신길85-9 | C120: 김홍륵 | D120: 소형이동식저온저장고 | E120: 민간자본사업보조 | F120: 6,000,000원 * 1동 * 50% | H120: 6,000 | I120: 3,000 | J120: 3,000 | K120: 3,000 | L120: 3,000 | M120: 3,000
A121: 농정과 | B121: 예천읍 용문경천로1844-1 | C121: 박경숙 | D121: 소형이동식저온저장고 | E121: 민간자본사업보조 | F121: 6,000,000원 * 1동 * 50% | H121: 6,000 | I121: 3,000 | J121: 3,000 | K121: 3,000 | L121: 3,000 | M121: 3,000
A122: 농정과 | B122: 예천읍 시장로167 | C122: 박노걸 | D122: 소형이동식저온저장고 | E122: 민간자본사업보조 | F122: 6,000,000원 * 1동 * 50% | H122: 6,000 | I122: 3,000 | J122: 3,000 | K122: 3,000 | L122: 3,000 | M122: 3,000
A123: 농정과 | B123: 예천읍 대심3길18-7 | C123: 안승용 | D123: 소형이동식저온저장고 | E123: 민간자본사업보조 | F123: 6,000,000원 * 1동 * 50% | H123: 6,000 | I123: 3,000 | J123: 3,000 | K123: 3,000 | L123: 3,000 | M123: 3,000
A124: 농정과 | B124: 예천읍 대심3길45-7 | C124: 이명순 | D124: 소형이동식저온저장고 | E124: 민간자본사업보조 | F124: 6,000,000원 * 1동 * 50% | H124: 6,000 | I124: 3,000 | J124: 3,000 | K124: 3,000 | L124: 3,000 | M124: 3,000
A125: 농정과 | B125: 예천읍 상설시장1길4 | C125: 이재근 | D125: 소형이동식저온저장고 | E125: 민간자본사업보조 | F125: 6,000,000원 * 1동 * 50% | H125: 6,000 | I125: 3,000 | J125: 3,000 | K125: 3,000 | L125: 3,000 | M125: 3,000
A126: 농정과 | B126: 예천읍 무리실길33 | C126: 장병영 | D126: 소형이동식저온저장고 | E126: 민간자본사업보조 | F126: 6,000,000원 * 1동 * 50% | H126: 6,000 | I126: 3,000 | J126: 3,000 | K126: 3,000 | L126: 3,000 | M126: 3,000
A127: 농정과 | B127: 예천읍 시장로80 | C127: 장지건 | D127: 소형이동식저온저장고 | E127: 민간자본사업보조 | F127: 6,000,000원 * 1동 * 50% | H127: 6,000 | I127: 3,000 | J127: 3,000 | K127: 3,000 | L127: 3,000 | M127: 3,000
A128: 농정과 | B128: 예천읍 한천길15 | C128: 최병진 | D128: 소형이동식저온저장고 | E128: 민간자본사업보조 | F128: 6,000,000원 * 1동 * 50% | H128: 6,000 | I128: 3,000 | J128: 3,000 | K128: 3,000 | L128: 3,000 | M128: 3,000
A129: 농정과 | B129: 예천읍 충효로308 | C129: 황진섭 | D129: 소형이동식저온저장고 | E129: 민간자본사업보조 | F129: 6,000,000원 * 1동 * 50% | H129: 6,000 | I129: 3,000 | J129: 3,000 | K129: 3,000 | L129: 3,000 | M129: 3,000
A130: 농정과 | B130: 용문면 재달길42 | C130: 권오성 | D130: 소형이동식저온저장고 | E130: 민간자본사업보조 | F130: 6,000,000원 * 1동 * 50% | H130: 6,000 | I130: 3,000 | J130: 3,000 | K130: 3,000 | L130: 3,000 | M130: 3,000
A131: 농정과 | B131: 용문면 큰맛질길14 | C131: 박태종 | D131: 소형이동식저온저장고 | E131: 민간자본사업보조 | F131: 6,000,000원 * 1동 * 50% | H131: 6,000 | I131: 3,000 | J131: 3,000 | K131: 3,000 | L131: 3,000 | M131: 3,000
A132: 농정과 | B132: 용문면 용문경천로997-13 | C132: 박희라 | D132: 소형이동식저온저장고 | E132: 민간자본사업보조 | F132: 6,000,000원 * 1동 * 50% | H132: 6,000 | I132: 3,000 | J132: 3,000 | K132: 3,000 | L132: 3,000 | M132: 3,000
A133: 농정과 | B133: 용문면 복천길80-8 | C133: 신대영 | D133: 소형이동식저온저장고 | E133: 민간자본사업보조 | F133: 6,000,000원 * 1동 * 50% | H133: 6,000 | I133: 3,000 | J133: 3,000 | K133: 3,000 | L133: 3,000 | M133: 3,000
A134: 농정과 | B134: 용문면 덕신길215 | C134: 안정희 | D134: 소형이동식저온저장고 | E134: 민간자본사업보조 | F134: 6,000,000원 * 1동 * 50% | H134: 6,000 | I134: 3,000 | J134: 3,000 | K134: 3,000 | L134: 3,000 | M134: 3,000
A135: 농정과 | B135: 용문면 노사길130 | C135: 황유진 | D135: 소형이동식저온저장고 | E135: 민간자본사업보조 | F135: 6,000,000원 * 1동 * 50% | H135: 6,000 | I135: 3,000 | J135: 3,000 | K135: 3,000 | L135: 3,000 | M135: 3,000
A136: 농정과 | B136: 효자면 도효자로1534-7 | C136: 권재화 | D136: 소형이동식저온저장고 | E136: 민간자본사업보조 | F136: 6,000,000원 * 1동 * 50% | H136: 6,000 | I136: 3,000 | J136: 3,000 | K136: 3,000 | L136: 3,000 | M136: 3,000
A137: 농정과 | B137: 효자면 외초항길81 | C137: 김남용 | D137: 소형이동식저온저장고 | E137: 민간자본사업보조 | F137: 6,000,000원 * 1동 * 50% | H137: 6,000 | I137: 3,000 | J137: 3,000 | K137: 3,000 | L137: 3,000 | M137: 3,000
A138: 농정과 | B138: 효자면 보리밭길38 | C138: 박경하 | D138: 소형이동식저온저장고 | E138: 민간자본사업보조 | F138: 6,000,000원 * 1동 * 50% | H138: 6,000 | I138: 3,000 | J138: 3,000 | K138: 3,000 | L138: 3,000 | M138: 3,000
A139: 농정과 | B139: 효자면 도효자로1487-5 | C139: 박태환 | D139: 소형이동식저온저장고 | E139: 민간자본사업보조 | F139: 6,000,000원 * 1동 * 50% | H139: 6,000 | I139: 3,000 | J139: 3,000 | K139: 3,000 | L139: 3,000 | M139: 3,000
A140: 농정과 | B140: 효자면 보리밭길38-1 | C140: 안숙자 | D140: 소형이동식저온저장고 | E140: 민간자본사업보조 | F140: 6,000,000원 * 1동 * 50% | H140: 6,000 | I140: 3,000 | J140: 3,000 | K140: 3,000 | L140: 3,000 | M140: 3,000
A141: 농정과 | B141: 효자면 무장길86 | C141: 이정퇴 | D141: 소형이동식저온저장고 | E141: 민간자본사업보조 | F141: 6,000,000원 * 1동 * 50% | H141: 6,000 | I141: 3,000 | J141: 3,000 | K141: 3,000 | L141: 3,000 | M141: 3,000
A142: 농정과 | B142: 은풍면 어림성길120-7 | C142: 김국제 | D142: 소형이동식저온저장고 | E142: 민간자본사업보조 | F142: 6,000,000원 * 1동 * 50% | H142: 6,000 | I142: 3,000 | J142: 3,000 | K142: 3,000 | L142: 3,000 | M142: 3,000
A143: 농정과 | B143: 은풍면 쇠실길15-1 | C143: 김낙구 | D143: 소형이동식저온저장고 | E143: 민간자본사업보조 | F143: 6,000,000원 * 1동 * 50% | H143: 6,000 | I143: 3,000 | J143: 3,000 | K143: 3,000 | L143: 3,000 | M143: 3,000
A144: 농정과 | B144: 은풍면 은풍로265 | C144: 김정환 | D144: 소형이동식저온저장고 | E144: 민간자본사업보조 | F144: 6,000,000원 * 1동 * 50% | H144: 6,000 | I144: 3,000 | J144: 3,000 | K144: 3,000 | L144: 3,000 | M144: 3,000
A145: 농정과 | B145: 은풍면 과산골길17 | C145: 이영만 | D145: 소형이동식저온저장고 | E145: 민간자본사업보조 | F145: 6,000,000원 * 1동 * 50% | H145: 6,000 | I145: 3,000 | J145: 3,000 | K145: 3,000 | L145: 3,000 | M145: 3,000
A146: 농정과 | B146: 은풍면 부용봉길244 | C146: 이재성 | D146: 소형이동식저온저장고 | E146: 민간자본사업보조 | F146: 6,000,000원 * 1동 * 50% | H146: 6,000 | I146: 3,000 | J146: 3,000 | K146: 3,000 | L146: 3,000 | M146: 3,000
A147: 농정과 | B147: 감천면 오향길212 | C147: 김구주 | D147: 소형이동식저온저장고 | E147: 민간자본사업보조 | F147: 6,000,000원 * 1동 * 50% | H147: 6,000 | I147: 3,000 | J147: 3,000 | K147: 3,000 | L147: 3,000 | M147: 3,000
A148: 농정과 | B148: 감천면 충효로1251-49 | C148: 김기주 | D148: 소형이동식저온저장고 | E148: 민간자본사업보조 | F148: 6,000,000원 * 1동 * 50% | H148: 6,000 | I148: 3,000 | J148: 3,000 | K148: 3,000 | L148: 3,000 | M148: 3,000
A149: 농정과 | B149: 감천면 도평길50-38 | C149: 김기현 | D149: 소형이동식저온저장고 | E149: 민간자본사업보조 | F149: 6,000,000원 * 1동 * 50% | H149: 6,000 | I149: 3,000 | J149: 3,000 | K149: 3,000 | L149: 3,000 | M149: 3,000
A150: 농정과 | B150: 감천면 충효로1051-42 | C150: 김미숙 | D150: 소형이동식저온저장고 | E150: 민간자본사업보조 | F150: 6,000,000원 * 1동 * 50% | H150: 6,000 | I150: 3,000 | J150: 3,000 | K150: 3,000 | L150: 3,000 | M150: 3,000
A151: 농정과 | B151: 감천면 대산길107 | C151: 김삼현 | D151: 소형이동식저온저장고 | E151: 민간자본사업보조 | F151: 6,000,000원 * 1동 * 50% | H151: 6,000 | I151: 3,000 | J151: 3,000 | K151: 3,000 | L151: 3,000 | M151: 3,000
A152: 농정과 | B152: 감천면 장산마촌길99-28 | C152: 김성기 | D152: 소형이동식저온저장고 | E152: 민간자본사업보조 | F152: 6,000,000원 * 1동 * 50% | H152: 6,000 | I152: 3,000 | J152: 3,000 | K152: 3,000 | L152: 3,000 | M152: 3,000
A153: 농정과 | B153: 감천면 충효로1509-27 | C153: 김여현 | D153: 소형이동식저온저장고 | E153: 민간자본사업보조 | F153: 6,000,000원 * 1동 * 50% | H153: 6,000 | I153: 3,000 | J153: 3,000 | K153: 3,000 | L153: 3,000 | M153: 3,000
A154: 농정과 | B154: 감천면 장산마촌길117-56 | C154: 김종석 | D154: 소형이동식저온저장고 | E154: 민간자본사업보조 | F154: 6,000,000원 * 1동 * 50% | H154: 6,000 | I154: 3,000 | J154: 3,000 | K154: 3,000 | L154: 3,000 | M154: 3,000
A155: 농정과 | B155: 감천면 범바우길58-1 | C155: 김종탁 | D155: 소형이동식저온저장고 | E155: 민간자본사업보조 | F155: 6,000,000원 * 1동 * 50% | H155: 6,000 | I155: 3,000 | J155: 3,000 | K155: 3,000 | L155: 3,000 | M155: 3,000
A156: 농정과 | B156: 감천면 장산1길34-4 | C156: 김창한 | D156: 소형이동식저온저장고 | E156: 민간자본사업보조 | F156: 6,000,000원 * 1동 * 50% | H156: 6,000 | I156: 3,000 | J156: 3,000 | K156: 3,000 | L156: 3,000 | M156: 3,000
A157: 농정과 | B157: 감천면 덕거리길125 | C157: 이규정 | D157: 소형이동식저온저장고 | E157: 민간자본사업보조 | F157: 6,000,000원 * 1동 * 50% | H157: 6,000 | I157: 3,000 | J157: 3,000 | K157: 3,000 | L157: 3,000 | M157: 3,000
A158: 농정과 | B158: 감천면 오향길211-3 | C158: 이창진 | D158: 소형이동식저온저장고 | E158: 민간자본사업보조 | F158: 6,000,000원 * 1동 * 50% | H158: 6,000 | I158: 3,000 | J158: 3,000 | K158: 3,000 | L158: 3,000 | M158: 3,000
A159: 농정과 | B159: 감천면 한천사길84 | C159: 조동진 | D159: 소형이동식저온저장고 | E159: 민간자본사업보조 | F159: 6,000,000원 * 1동 * 50% | H159: 6,000 | I159: 3,000 | J159: 3,000 | K159: 3,000 | L159: 3,000 | M159: 3,000
A160: 농정과 | B160: 감천면 자봉길49 | C160: 진봉식 | D160: 소형이동식저온저장고 | E160: 민간자본사업보조 | F160: 6,000,000원 * 1동 * 50% | H160: 6,000 | I160: 3,000 | J160: 3,000 | K160: 3,000 | L160: 3,000 | M160: 3,000
A161: 농정과 | B161: 감천면 자봉길51 | C161: 최남철 | D161: 소형이동식저온저장고 | E161: 민간자본사업보조 | F161: 6,000,000원 * 1동 * 50% | H161: 6,000 | I161: 3,000 | J161: 3,000 | K161: 3,000 | L161: 3,000 | M161: 3,000
A162: 농정과 | B162: 보문면 수양길36 | C162: 김철수 | D162: 소형이동식저온저장고 | E162: 민간자본사업보조 | F162: 6,000,000원 * 1동 * 50% | H162: 6,000 | I162: 3,000 | J162: 3,000 | K162: 3,000 | L162: 3,000 | M162: 3,000
A163: 농정과 | B163: 보문면 독죽골길71 | C163: 김홍래 | D163: 소형이동식저온저장고 | E163: 민간자본사업보조 | F163: 6,000,000원 * 1동 * 50% | H163: 6,000 | I163: 3,000 | J163: 3,000 | K163: 3,000 | L163: 3,000 | M163: 3,000
A164: 농정과 | B164: 보문면 보문로308-26 | C164: 안의부 | D164: 소형이동식저온저장고 | E164: 민간자본사업보조 | F164: 6,000,000원 * 1동 * 50% | H164: 6,000 | I164: 3,000 | J164: 3,000 | K164: 3,000 | L164: 3,000 | M164: 3,000
A165: 농정과 | B165: 보문면 옥계천로450-20 | C165: 장민철 | D165: 소형이동식저온저장고 | E165: 민간자본사업보조 | F165: 6,000,000원 * 1동 * 50% | H165: 6,000 | I165: 3,000 | J165: 3,000 | K165: 3,000 | L165: 3,000 | M165: 3,000
A166: 농정과 | B166: 보문면 가거리길15 | C166: 정승걸 | D166: 소형이동식저온저장고 | E166: 민간자본사업보조 | F166: 6,000,000원 * 1동 * 50% | H166: 6,000 | I166: 3,000 | J166: 3,000 | K166: 3,000 | L166: 3,000 | M166: 3,000
A167: 농정과 | B167: 보문면 가거리길25-14 | C167: 정재완 | D167: 소형이동식저온저장고 | E167: 민간자본사업보조 | F167: 6,000,000원 * 1동 * 50% | H167: 6,000 | I167: 3,000 | J167: 3,000 | K167: 3,000 | L167: 3,000 | M167: 3,000
A168: 농정과 | B168: 호명면 설늠2길13 | C168: 강영식 | D168: 소형이동식저온저장고 | E168: 민간자본사업보조 | F168: 6,000,000원 * 1동 * 50% | H168: 6,000 | I168: 3,000 | J168: 3,000 | K168: 3,000 | L168: 3,000 | M168: 3,000
A169: 농정과 | B169: 호명면 팔미길60-2 | C169: 우금윤 | D169: 소형이동식저온저장고 | E169: 민간자본사업보조 | F169: 6,000,000원 * 1동 * 50% | H169: 6,000 | I169: 3,000 | J169: 3,000 | K169: 3,000 | L169: 3,000 | M169: 3,000
A170: 농정과 | B170: 호명면 설늠1길77-14 | C170: 이국형 | D170: 소형이동식저온저장고 | E170: 민간자본사업보조 | F170: 6,000,000원 * 1동 * 50% | H170: 6,000 | I170: 3,000 | J170: 3,000 | K170: 3,000 | L170: 3,000 | M170: 3,000
A171: 농정과 | B171: 호명면 설늠1길77-31 | C171: 이용기 | D171: 소형이동식저온저장고 | E171: 민간자본사업보조 | F171: 6,000,000원 * 1동 * 50% | H171: 6,000 | I171: 3,000 | J171: 3,000 | K171: 3,000 | L171: =K171 -> 3,000 | M171: =L171 -> 3,000
A172: 농정과 | B172: 호명면 담암길65-6 | C172: 이형화 | D172: 소형이동식저온저장고 | E172: 민간자본사업보조 | F172: 6,000,000원 * 1동 * 50% | H172: 6,000 | I172: 3,000 | J172: 3,000 | K172: 3,000 | L172: 3,000 | M172: 3,000
A173: 농정과 | B173: 호명면 상간산길107 | C173: 정재문 | D173: 소형이동식저온저장고 | E173: 민간자본사업보조 | F173: 6,000,000원 * 1동 * 50% | H173: 6,000 | I173: 3,000 | J173: 3,000 | K173: 3,000 | L173: 3,000 | M173: 3,000
A174: 농정과 | B174: 유천면 가동1길38-2 | C174: 강연모 | D174: 소형이동식저온저장고 | E174: 민간자본사업보조 | F174: 6,000,000원 * 1동 * 50% | H174: 6,000 | I174: 3,000 | J174: 3,000 | K174: 3,000 | L174: 3,000 | M174: 3,000
A175: 농정과 | B175: 유천면 유용로73 | C175: 박종구 | D175: 소형이동식저온저장고 | E175: 민간자본사업보조 | F175: 6,000,000원 * 1동 * 50% | H175: 6,000 | I175: 3,000 | J175: 3,000 | K175: 3,000 | L175: 3,000 | M175: 3,000
A176: 농정과 | B176: 유천면 중평59-13 | C176: 배기언 | D176: 소형이동식저온저장고 | E176: 민간자본사업보조 | F176: 6,000,000원 * 1동 * 50% | H176: 6,000 | I176: 3,000 | J176: 3,000 | K176: 3,000 | L176: 3,000 | M176: 3,000
A177: 농정과 | B177: 유천면 성평길36-2 | C177: 양수영 | D177: 소형이동식저온저장고 | E177: 민간자본사업보조 | F177: 6,000,000원 * 1동 * 50% | H177: 6,000 | I177: 3,000 | J177: 3,000 | K177: 3,000 | L177: 3,000 | M177: 3,000
A178: 농정과 | B178: 유천면 성평길7-67 | C178: 엄대철 | D178: 소형이동식저온저장고 | E178: 민간자본사업보조 | F178: 6,000,000원 * 1동 * 50% | H178: 6,000 | I178: 3,000 | J178: 3,000 | K178: 3,000 | L178: 3,000 | M178: 3,000
A179: 농정과 | B179: 유천면 화지2길50 | C179: 윤희운 | D179: 소형이동식저온저장고 | E179: 민간자본사업보조 | F179: 6,000,000원 * 1동 * 50% | H179: 6,000 | I179: 3,000 | J179: 3,000 | K179: 3,000 | L179: 3,000 | M179: 3,000
A180: 농정과 | B180: 유천면 고산길66-7 | C180: 이동창 | D180: 소형이동식저온저장고 | E180: 민간자본사업보조 | F180: 6,000,000원 * 1동 * 50% | H180: 6,000 | I180: 3,000 | J180: 3,000 | K180: 3,000 | L180: 3,000 | M180: 3,000
A181: 농정과 | B181: 유천면 중평592-7 | C181: 황영금 | D181: 소형이동식저온저장고 | E181: 민간자본사업보조 | F181: 6,000,000원 * 1동 * 50% | H181: 6,000 | I181: 3,000 | J181: 3,000 | K181: 3,000 | L181: 3,000 | M181: 3,000
A182: 농정과 | B182: 유천면 가동1길13(가1리) | C182: 강성모 | D182: 소형이동식저온저장고 | E182: 민간자본사업보조 | F182: 6,000,000원 * 1동 * 50% | H182: 6,000 | I182: 3,000 | J182: 3,000 | K182: 3,000 | L182: 3,000 | M182: 3,000
A183: 농정과 | B183: 용궁면 경암길21 | C183: 김상현 | D183: 소형이동식저온저장고 | E183: 민간자본사업보조 | F183: 6,000,000원 * 1동 * 50% | H183: 6,000 | I183: 3,000 | J183: 3,000 | K183: 3,000 | L183: 3,000 | M183: 3,000
A184: 농정과 | B184: 용궁면 덕계2길133 | C184: 김주호 | D184: 소형이동식저온저장고 | E184: 민간자본사업보조 | F184: 6,000,000원 * 1동 * 50% | H184: 6,000 | I184: 3,000 | J184: 3,000 | K184: 3,000 | L184: 3,000 | M184: 3,000
A185: 농정과 | B185: 용궁면 덕계1길52 | C185: 도중환 | D185: 소형이동식저온저장고 | E185: 민간자본사업보조 | F185: 6,000,000원 * 1동 * 50% | H185: 6,000 | I185: 3,000 | J185: 3,000 | K185: 3,000 | L185: 3,000 | M185: 3,000
A186: 농정과 | B186: 용궁면 용궁로120 | C186: 박영훈 | D186: 소형이동식저온저장고 | E186: 민간자본사업보조 | F186: 6,000,000원 * 1동 * 50% | H186: 6,000 | I186: 3,000 | J186: 3,000 | K186: 3,000 | L186: 3,000 | M186: 3,000
A187: 농정과 | B187: 용궁면 황목근길105 | C187: 배팔경 | D187: 소형이동식저온저장고 | E187: 민간자본사업보조 | F187: 6,000,000원 * 1동 * 50% | H187: 6,000 | I187: 3,000 | J187: 3,000 | K187: 3,000 | L187: 3,000 | M187: 3,000
A188: 농정과 | B188: 용궁면 고두실길115 | C188: 신귀분 | D188: 소형이동식저온저장고 | E188: 민간자본사업보조 | F188: 6,000,000원 * 1동 * 50% | H188: 6,000 | I188: 3,000 | J188: 3,000 | K188: 3,000 | L188: 3,000 | M188: 3,000
A189: 농정과 | B189: 용궁면 치냇걸길35 | C189: 이경돈 | D189: 소형이동식저온저장고 | E189: 민간자본사업보조 | F189: 6,000,000원 * 1동 * 50% | H189: 6,000 | I189: 3,000 | J189: 3,000 | K189: 3,000 | L189: 3,000 | M189: 3,000
A190: 농정과 | B190: 용궁면 실음실길47-14 | C190: 이성우 | D190: 소형이동식저온저장고 | E190: 민간자본사업보조 | F190: 6,000,000원 * 1동 * 50% | H190: 6,000 | I190: 3,000 | J190: 3,000 | K190: 3,000 | L190: 3,000 | M190: 3,000
A191: 농정과 | B191: 용궁면 무지길112 | C191: 임운상 | D191: 소형이동식저온저장고 | E191: 민간자본사업보조 | F191: 6,000,000원 * 1동 * 50% | H191: 6,000 | I191: 3,000 | J191: 3,000 | K191: 3,000 | L191: 3,000 | M191: 3,000
A192: 농정과 | B192: 용궁면 송암길15 | C192: 한상준 | D192: 소형이동식저온저장고 | E192: 민간자본사업보조 | F192: 6,000,000원 * 1동 * 50% | H192: 6,000 | I192: 3,000 | J192: 3,000 | K192: 3,000 | L192: 3,000 | M192: 3,000
A193: 농정과 | B193: 용궁면 향석길4-2 | C193: 허준정 | D193: 소형이동식저온저장고 | E193: 민간자본사업보조 | F193: 6,000,000원 * 1동 * 50% | H193: 6,000 | I193: 3,000 | J193: 3,000 | K193: 3,000 | L193: 3,000 | M193: 3,000
A194: 농정과 | B194: 개포면 송담길142-24 | C194: 남기호 | D194: 소형이동식저온저장고 | E194: 민간자본사업보조 | F194: 6,000,000원 * 1동 * 50% | H194: 6,000 | I194: 3,000 | J194: 3,000 | K194: 3,000 | L194: 3,000 | M194: 3,000
A195: 농정과 | B195: 개포면 개포면 이사리 | C195: 신봉희 | D195: 소형이동식저온저장고 | E195: 민간자본사업보조 | F195: 6,000,000원 * 1동 * 50% | H195: 6,000 | I195: 3,000 | J195: 3,000 | K195: 3,000 | L195: 3,000 | M195: 3,000
A196: 농정과 | B196: 개포면 성조길34-5 | C196: 양영호 | D196: 소형이동식저온저장고 | E196: 민간자본사업보조 | F196: 6,000,000원 * 1동 * 50% | H196: 6,000 | I196: 3,000 | J196: 3,000 | K196: 3,000 | L196: 3,000 | M196: 3,000
A197: 농정과 | B197: 개포면 신음리길28-5 | C197: 엄순주 | D197: 소형이동식저온저장고 | E197: 민간자본사업보조 | F197: 6,000,000원 * 1동 * 50% | H197: 6,000 | I197: 3,000 | J197: 3,000 | K197: 3,000 | L197: 3,000 | M197: 3,000
A198: 농정과 | B198: 개포면 용개로1447-1 | C198: 이연근 | D198: 소형이동식저온저장고 | E198: 민간자본사업보조 | F198: 6,000,000원 * 1동 * 50% | H198: 6,000 | I198: 3,000 | J198: 3,000 | K198: 3,000 | L198: 3,000 | M198: 3,000
A199: 농정과 | B199: 지보면 지풍로31-37 | C199: 권순복 | D199: 소형이동식저온저장고 | E199: 민간자본사업보조 | F199: 6,000,000원 * 1동 * 50% | H199: 6,000 | I199: 3,000 | J199: 3,000 | K199: 3,000 | L199: 3,000 | M199: 3,000
A200: 농정과 | B200: 지보면 매화길34-32 | C200: 권순향 | D200: 소형이동식저온저장고 | E200: 민간자본사업보조 | F200: 6,000,000원 * 1동 * 50% | H200: 6,000 | I200: 3,000 | J200: 3,000 | K200: 3,000 | L200: 3,000 | M200: 3,000
... 231 more rows
